Cogmind - Beta 17 @@@ ROGUE MODE // 2026.08.20 @ 19:50:34 Player: NeoBioHazard Result: Destroyed by G-50 Soldier with Heavy Laser Performance ------------- Evolutions (5) 2500 Regions Visited (16) 3200 Robots Destroyed (43) 215 Value Destroyed (1182) 1182 Prototype IDs (17) 340 Alien Tech Used (0) 0 Bonus (1393) 1393 TOTAL SCORE: 8830 Bonus ------- Follower Combat Kills 101 Met Data Miner 300 Met Warlord at Base 500 MAIN.C Attacked Warlord 500 Friendly Fire -8 Cogmind --------- Core Integrity 0/1000 Matter 291/300 Energy 81/100 System Corruption 0% Temperature Cool (11) Movement Flying (37) Location -5/Warlord Parts ------- > --- POWER (2) -------- (None) > --- PROPULSION (7) --- Cesium-ion Thruster Field Propulsion Drive > --- UTILITY (6) ------ Advanced Visual Processing Unit Improved Signal Interpreter Advanced Terrain Scan Processor > --- WEAPON (2) ------- Maul Axe > --- INVENTORY (5) ---- Power Amplifier Makeshift Trap Scanner Powered Hammer Makeshift Hammer Scythe Peak State ------------ > --- POWER ------------ Makeshift Power Source Fusion Compressor > --- PROPULSION ------- Makeshift Flight Unit Field Propulsion Drive Nuclear Pulse Array > --- UTILITY ---------- Makeshift Trap Scanner Advanced Visual Processing Unit Improved Signal Interpreter Advanced Terrain Scan Processor 0b10 Decoder Chip [Scout] Minesniffer Drone Bay > --- WEAPON ----------- Maul Axe > --- INVENTORY -------- Power Amplifier Powered Hammer Makeshift Hammer Scythe [Rating: 67] Favorites ----------- Power Ion Engine Engine Ion Engine Power Core Fusion Compressor Propulsion Light Treads Treads Light Treads Leg Aluminum Leg Flight Unit Cesium-ion Thruster Utility Improved Medium Armor Plating Device Makeshift Trap Scanner Storage High-capacity Storage Unit Processor Targeting Computer Protection Improved Medium Armor Plating Weapon Light Assault Rifle Ballistic Gun Light Assault Rifle Impact Weapon Maul Slashing Weapon Katana Piercing Weapon Heavy Pick Build | -11 -10 -10 -10 -9 -8 -8 -8 -6 -6 -6 -6 -5 -5 -5 -5 -5 ------- Run | Yrd Mat Min Exi Min Mat Sto Rec Fac Low Low Dat Pro Fac Upp Upp War Slots Evolved 10 | . . . . . 4 . . 4 . . . . 2 . . . Power 1 | . . . . . . . . . . . . . 1 . . . Propulsion 5 | . . . . . . . . 4 . . . . 1 . . . Utility 4 | . . . . . 4 . . . . . . . . . . . Weapon . | . . . . . . . . . . . . . . . . . Parts Attached 71 | 7 1 2 1 5 9 5 . 10 1 3 1 3 11 2 6 4 Power 12 | 1 . 1 . 2 2 . . . 1 . 1 . 1 . 2 1 Engine 9 | 1 . 1 . 2 2 . . . 1 . 1 . . . 1 . Core 3 | . . . . . . . . . . . . . 1 . 1 1 Reactor . | . . . . . . . . . . . . . . . . . Propulsion 24 | 2 . . . 2 2 . . 6 . . . 2 7 . 2 1 Treads 4 | 2 . . . . 2 . . . . . . . . . . . Leg 2 | . . . . 2 . . . . . . . . . . . . Wheel . | . . . . . . . . . . . . . . . . . Hover . | . . . . . . . . . . . . . . . . . Flight 18 | . . . . . . . . 6 . . . 2 7 . 2 1 Utility 19 | 1 1 1 1 . 5 . . 2 . 3 . 1 . 1 2 1 Device 6 | . 1 . . . . . . 1 . 1 . 1 . . 1 1 Storage 2 | 1 . . 1 . . . . . . . . . . . . . Processor 7 | . . 1 . . 1 . . 1 . 2 . . . 1 1 . Hackware . | . . . . . . . . . . . . . . . . . Protection 4 | . . . . . 4 . . . . . . . . . . . Artifact . | . . . . . . . . . . . . . . . . . Weapon 16 | 3 . . . 1 . 5 . 2 . . . . 3 1 . 1 Energy Gun . | . . . . . . . . . . . . . . . . . Energy Cannon . | . . . . . . . . . . . . . . . . . Ballistic Gun 8 | 3 . . . 1 . 4 . . . . . . . . . . Ballistic Cannon . | . . . . . . . . . . . . . . . . . Launcher . | . . . . . . . . . . . . . . . . . Special Weapon . | . . . . . . . . . . . . . . . . . Impact Weapon 1 | . . . . . . . . . . . . . . 1 . . Slashing Weapon 6 | . . . . . . 1 . 2 . . . . 2 . . 1 Piercing Weapon 1 | . . . . . . . . . . . . . 1 . . . Special Melee Weapon . | . . . . . . . . . . . . . . . . . Unidentified Prototypes 4 | . . . . . 1 . . 1 . . . . 1 . . 1 Parts Lost 33 | . . . . 4 . . . . 1 . . 12 8 2 . 6 Power 6 | . . . . 1 . . . . . . . 1 1 . . 3 Propulsion 16 | . . . . 1 . . . . . . . 7 4 2 . 2 Utility 4 | . . . . . . . . . 1 . . 2 . . . 1 Weapon 7 | . . . . 2 . . . . . . . 2 3 . . . Highest Loss Streak 11 | . . . . 4 . . . . 1 . . 11 5 7 . 6 To Critical Strikes . | . . . . . . . . . . . . . . . . . Average Backups 9 | . 2 5 6 13 18 19 20 13 5 5 4 4 . . 1 4 Power 1 | . 1 1 2 3 3 3 3 3 1 1 . . . . . . Propulsion 3 | . . 1 2 1 6 8 9 4 1 1 1 1 . . . . Utility 2 | . . 1 1 6 7 5 3 2 . . . . . . . 1 Weapon 1 | . 1 1 1 1 1 3 5 3 2 3 3 3 . . 1 3 Tool/Special . | . . . . . . . . . . . . . . . . . Unused Backups 20 | . . . . . 2 7 . 5 2 . . . . . . 4 Power 4 | . . . . . 2 . . . 2 . . . . . . . Propulsion 2 | . . . . . . . . 2 . . . . . . . . Utility 7 | . . . . . . 5 . 1 . . . . . . . 1 Weapon 6 | . . . . . . 1 . 2 . . . . . . . 3 Tool/Special 1 | . . . . . . 1 . . . . . . . . . . Average Slot Usage (%) 86 | . 92 100 100 88 94 100 100 79 84 87 93 57 42 41 50 70 Engine 8 | . 14 14 14 12 9 9 9 6 6 3 6 2 . . . 4 Treads 15 | . 28 28 28 16 12 18 18 5 . . . . . . . . Flight 5 | . . . . . . . . 21 40 37 33 13 12 6 8 16 Device 1 | . 7 3 . . . . . 2 4 4 6 5 . . 3 4 Storage 8 | . 14 14 14 14 9 9 9 4 . . . . . . . . Processor 17 | . . 10 14 14 17 18 18 16 20 27 33 26 23 28 29 24 Protection 8 | . . . . . 22 27 27 8 . . . . . . . . Ballistic Gun 15 | . 28 28 28 22 18 16 18 7 . . . . . . . . Slashing Weapon 1 | . . . . . . 1 . 5 13 13 13 8 2 . . 5 Peak Build Rating 67 | 6 9 9 8 9 35 40 40 46 41 46 45 50 46 35 59 67 Average Rating 26 | 4 7 7 7 7 29 37 40 38 39 43 45 31 29 33 42 58 On Entrance 27 | . 6 9 7 8 9 35 40 40 38 38 43 45 16 34 33 59 Avg Prop Armor Cover (%) 2 | . . . . . . . . 2 2 2 . . . . . 4 Naked Turns . | . . . . . . . . . . . . . . . . . Heaviest Build 75 | 13 14 14 48 50 74 75 75 75 18 18 13 18 8 3 17 21 Greatest Support 56 | 40 40 40 40 40 56 56 56 56 25 25 25 25 30 22 28 28 Greatest Overweight (x) 3 | 1 . . 1 2 3 1 1 1 . . . 2 . . . 1 Average Overweight (x) . | . . . . 1 1 1 1 . . . . . . . . . Largest Inventory Capacity 20 | 8 8 8 20 20 20 20 20 20 5 5 5 5 5 5 5 5 Average Capacity 12 | 7 8 8 10 20 20 20 20 13 5 5 5 5 5 5 5 5 Most Carried 20 | 2 3 6 11 16 20 20 20 20 5 5 4 4 3 . 5 5 Average Carried 9 | 1 2 5 6 13 18 19 20 12 4 4 4 4 . . 2 4 Final Capacity 20 | 8 8 8 20 20 20 20 20 5 5 5 5 5 5 5 5 5 Final Carried 20 | 2 3 6 11 12 20 20 20 5 5 5 4 4 . . 5 5 Class Distribution -------------------- 77% | Mutant 12% | Derelict-Mutant 3% | Derelict-Sprinter 3% | Sprinter Dominant Class ---------------- Mutant | -10/Materials Mutant | -10/Mines Mutant | -10/Exiles Mutant | -9/Mines Mutant | -8/Materials Mutant | -8/Storage Mutant | -8/Recycling Scout | -6/Factory Scout | -6/Lower Caves Derelict-Sprinter | -6/Lower Caves Derelict-Sprinter | -6/Data Miner Mutant | -5/Proximity Caves Mutant | -5/Factory Derelict-Mutant | -5/Upper Caves Derelict-Mutant | -5/Upper Caves Derelict-Mutant | -5/Warlord Resources | -11 -10 -10 -10 -9 -8 -8 -8 -6 -6 -6 -6 -5 -5 -5 -5 -5 ----------- Run | Yrd Mat Min Exi Min Mat Sto Rec Fac Low Low Dat Pro Fac Upp Upp War Matter Collected 1316 | 270 100 44 30 10 220 266 18 . 110 30 . 40 92 15 30 41 Remotely . | . . . . . . . . . . . . . . . . . Salvage Created 1654 | . 180 78 . . 220 593 . . 65 . . 136 356 26 . . Parts 89 | . 8 5 . . 12 40 . . 3 . . 7 14 . . . Haulers Intercepted 6 | . . . . . 2 4 . . . . . . . . . . Recyclers Shooed . | . . . . . . . . . . . . . . . . . Parts Field Recycled . | . . . . . . . . . . . . . . . . . Retrieved Matter . | . . . . . . . . . . . . . . . . . Parts Self-Destructed 9 | . . . . . . . . . 3 . . 5 . 1 . . Prevented . | . . . . . . . . . . . . . . . . . Parts Restored . | . . . . . . . . . . . . . . . . . Kills | -11 -10 -10 -10 -9 -8 -8 -8 -6 -6 -6 -6 -5 -5 -5 -5 -5 ------- Run | Yrd Mat Min Exi Min Mat Sto Rec Fac Low Low Dat Pro Fac Upp Upp War Combat Hostiles Destroyed 32 | . 2 2 . . 2 10 . . 1 . . 5 9 1 . . Melee 15 | . . . . . . . . . 1 . . 5 9 . . . Guns 16 | . 2 2 . . 2 10 . . . . . . . . . . Classes Destroyed 9 | . 2 . . . 2 4 . . 1 . . . . . . . Tunneler 1 | . . . . . 1 . . . . . . . . . . . Hauler 6 | . . . . . 2 4 . . . . . . . . . . Recycler 2 | . 1 . . . . . . . . . . . 1 . . . Operator 1 | . . . . . . 1 . . . . . . . . . . Watcher 1 | . . . . . . 1 . . . . . . . . . . Swarmer 18 | . . . . . . 3 . . . . . 5 9 1 . . Grunt 8 | . 2 2 . . 2 2 . . . . . . . . . . Sentry 5 | . . . . . . 5 . . . . . . . . . . Hunter 1 | . . . . . . . . . 1 . . . . . . . Best Kill Streak 5 | . 3 2 . . 3 4 . . 1 . . 5 4 1 . . Combat Bots Only 5 | . 2 2 . . 2 4 . . 1 . . 5 4 1 . . Max Kills in Single Turn 2 | . 1 1 . . 1 2 . . 1 . . 1 1 1 . . Gunslinging 1 | . . . . . . 1 . . . . . . . . . . Exploded . | . . . . . . . . . . . . . . . . . Melee 1 | . . . . . . . . . 1 . . 1 1 . . . Uniques/NPCs Destroyed . | . . . . . . . . . . . . . . . . . Combat | -11 -10 -10 -10 -9 -8 -8 -8 -6 -6 -6 -6 -5 -5 -5 -5 -5 -------- Run | Yrd Mat Min Exi Min Mat Sto Rec Fac Low Low Dat Pro Fac Upp Upp War Hostile Shots Fired 451 | . 13 9 . 46 10 52 . 11 9 2 . 124 117 14 . 44 Missed 166 | . 2 1 . 22 1 19 . 9 2 . . 47 46 4 . 13 Hits 285 | . 11 8 . 24 9 33 . 2 7 2 . 77 71 10 . 31 Melee 9 | . . . . 5 . . . . . 2 . . . 1 . 1 Projectile 276 | . 11 8 . 19 9 33 . 2 7 . . 77 71 9 . 30 AOE 8 | . . . . 6 . . . . . . . . . . . 2 Critical Strikes 5 | . . . . . . 3 . . . . . 1 . 1 . . Part Disruptions 1 | . . . . . . . . . . . . . . . . 1 Damage Taken 4692 | . 146 116 . 580 144 442 21 28 129 . . 1248 1087 199 . 552 Core 2123 | . 17 44 . 185 15 21 . 14 35 . . 778 717 71 . 226 Absorbed by Shields . | . . . . . . . . . . . . . . . . . Core Remaining (%) 49 | 100 . . . 1 . . 93 . . . . 2 . . . . Volleys Fired 76 | . 10 6 . 1 15 41 3 . . . . . . . . . Largest 2 | . 2 2 . 2 2 2 2 . . . . . . . . . Hottest 46 | . 40 40 . 43 43 46 46 . . . . . . . . . Shots Fired 152 | . 20 12 . 2 30 82 6 . . . . . . . . . Gun 152 | . 20 12 . 2 30 82 6 . . . . . . . . . Cannon . | . . . . . . . . . . . . . . . . . Launcher . | . . . . . . . . . . . . . . . . . Special . | . . . . . . . . . . . . . . . . . Kinetic 152 | . 20 12 . 2 30 82 6 . . . . . . . . . Thermal . | . . . . . . . . . . . . . . . . . Explosive . | . . . . . . . . . . . . . . . . . Electromagnetic . | . . . . . . . . . . . . . . . . . Robot Hit Streak 17 | . 7 7 . 3 11 17 10 . . . . . . . . . Robot Miss Streak 5 | . 5 2 . 1 2 2 . . . . . . . . . . Penetration Max . | . . . . . . . . . . . . . . . . . Secondary Targets 1 | . . . . . . 1 . . . . . . . . . . Max Gunslinging Chain 1 | . . . . . . 1 . . . . . . . . . . Shots Hit Robots 159 | . 12 9 . 2 22 65 6 . 4 . . 13 25 1 . . Core Hits 74 | . 6 4 . . 11 34 1 . 2 . . 6 10 . . . Critical Kills 2 | . . 1 . . . 1 . . . . . . . . . . Critical Parts Destroyed 2 | . . . . . . 1 . . . . . . . 1 . . Critical Strikes 7 | . . 1 . . . 2 . . . . . 3 . 1 . . Destroy 3 | . . 1 . . . 2 . . . . . . . . . . Smash 1 | . . . . . . . . . . . . . . 1 . . Sever 3 | . . . . . . . . . . . . 3 . . . . Melee Attacks 70 | . . . . . . 2 . . 7 . . 17 41 1 . 2 Impact 1 | . . . . . . . . . . . . . . 1 . . Slashing 54 | . . . . . . 2 . . 7 . . 17 26 . . 2 Piercing 15 | . . . . . . . . . . . . . 15 . . . Sneak Attacks 1 | . . . . . . . . . . . . . 1 . . . Combat Hostiles . | . . . . . . . . . . . . . . . . . Follow-up Attacks 2 | . . . . . . . . . . . . 2 . . . . Damage Inflicted 2918 | . 122 97 . 21 330 779 93 . 139 . . 410 897 30 . . Guns 1442 | . 122 97 . 21 330 779 93 . . . . . . . . . Cannons . | . . . . . . . . . . . . . . . . . Explosions . | . . . . . . . . . . . . . . . . . Melee 1476 | . . . . . . . . . 139 . . 410 897 30 . . Ramming . | . . . . . . . . . . . . . . . . . Kinetic 1442 | . 122 97 . 21 330 779 93 . . . . . . . . . Thermal . | . . . . . . . . . . . . . . . . . Explosive . | . . . . . . . . . . . . . . . . . Electromagnetic . | . . . . . . . . . . . . . . . . . Impact 30 | . . . . . . . . . . . . . . 30 . . Slashing 1151 | . . . . . . . . . 139 . . 410 602 . . . Piercing 295 | . . . . . . . . . . . . . 295 . . . Highest Corruption 3 | . . . . . . . . . . . . 3 . . . . Average Corruption 2 | . . . . . . . . . . . . 2 . . . . Corruption Purged . | . . . . . . . . . . . . . . . . . Corruption Blocked . | . . . . . . . . . . . . . . . . . Effects 2 | . . . . . . . . . . . . 2 . . . . Matter Fused 1 | . . . . . . . . . . . . 1 . . . . Heat Flow Errors 1 | . . . . . . . . . . . . 1 . . . . Overload Shots . | . . . . . . . . . . . . . . . . . Overflow Damage 97 | . . . . . . . . . . . . 13 54 30 . . Projectiles . | . . . . . . . . . . . . . . . . . Explosions . | . . . . . . . . . . . . . . . . . Melee 97 | . . . . . . . . . . . . 13 54 30 . . Knockbacks . | . . . . . . . . . . . . . . . . . Impact . | . . . . . . . . . . . . . . . . . Kinetic . | . . . . . . . . . . . . . . . . . Secondary . | . . . . . . . . . . . . . . . . . Self-Inflicted Damage . | . . . . . . . . . . . . . . . . . Shots . | . . . . . . . . . . . . . . . . . Rammed . | . . . . . . . . . . . . . . . . . Targets Rammed . | . . . . . . . . . . . . . . . . . Kicked . | . . . . . . . . . . . . . . . . . Crushed . | . . . . . . . . . . . . . . . . . Highest Temperature 80 | . 9 . . 14 26 31 5 5 1 1 . 80 . . . . Average Temperature 5 | . 7 . . 6 6 5 3 5 1 1 . 34 . . . . Received Heat Transfer 703 | . 81 69 . 72 81 189 9 . . . . 94 27 27 . 54 Siege Activations . | . . . . . . . . . . . . . . . . . Martial Activations . | . . . . . . . . . . . . . . . . . Shielding Activations . | . . . . . . . . . . . . . . . . . Robots Disrupted . | . . . . . . . . . . . . . . . . . Combat Hostiles . | . . . . . . . . . . . . . . . . . Robots Corrupted 1 | . . . . . . . . . . . . . . 1 . . Combat Hostiles 1 | . . . . . . . . . . . . . . 1 . . Parts Fried . | . . . . . . . . . . . . . . . . . Impact Corruptions 2 | . . . . . . . . . . . . . . 2 . . Robots Melted . | . . . . . . . . . . . . . . . . . Combat Hostiles . | . . . . . . . . . . . . . . . . . Parts Melted . | . . . . . . . . . . . . . . . . . Heat Transferred . | . . . . . . . . . . . . . . . . . Parts Sabotaged 1 | . . . . . . . . . . . . . . . . 1 Parts Stolen 2 | . . . . . . . . . . 2 . . . . . . Parts Stripped . | . . . . . . . . . . . . . . . . . Power Chain Reactions . | . . . . . . . . . . . . . . . . . Alert | -11 -10 -10 -10 -9 -8 -8 -8 -6 -6 -6 -6 -5 -5 -5 -5 -5 ------- Run | Yrd Mat Min Exi Min Mat Sto Rec Fac Low Low Dat Pro Fac Upp Upp War Maximum Alert Level 1 | . . . . . . . . . . . . . 1 . . . Low Security (%) 97 | 100 100 100 . 100 100 100 100 100 . . . . 59 . . . Level 1 2 | . . . . . . . . . . . . . 40 . . . Level 2 . | . . . . . . . . . . . . . . . . . Level 3 . | . . . . . . . . . . . . . . . . . Level 4 . | . . . . . . . . . . . . . . . . . Level 5 . | . . . . . . . . . . . . . . . . . High Security . | . . . . . . . . . . . . . . . . . Max Security . | . . . . . . . . . . . . . . . . . Peak Influence 267 | . 45 40 . . 39 146 26 56 . . . . 267 . . . Initial 56 | . . . . . . . 25 56 . . . . 12 . . . Average 26 | . 9 3 . . 3 47 7 46 . . . . 151 . . . Influence Increases 1722 | . 64 50 . . 113 339 46 65 30 . . 220 415 155 . 225 Destroy 0b10 Robot/C 720 | . 40 40 . . 60 200 40 . 20 . . 120 180 20 . . Destroy 0b10 Robot/NC 60 | . 5 . . . 20 30 . . . . . . 5 . . . Destroy Leader 144 | . 10 10 . . 14 70 . . 10 . . 10 20 . . . Allied During Kill 10 | . . . . . 4 . 6 . . . . . . . . . Successful Hack 16 | . 9 . . . . 7 . . . . . . . . . . Disable Machine 45 | . . . . . 15 30 . . . . . . . . . . Destroy Structure 2 | . . . . . . 2 . . . . . . . . . . Advance Influence 50 | . . . . . . . . 50 . . . . . . . . Partial Spotted 15 | . . . . . . . . 15 . . . . . . . . Lose Combat Pursuer 660 | . . . . . . . . . . . . 90 210 135 . 225 Influence Decreases 1580 | . 64 50 . . 113 274 95 40 61 10 . 200 198 179 112 184 Entered New Map 308 | . . . . . . . 40 10 16 2 . . 8 89 42 101 Time Decay 968 | . 59 50 . . 74 274 55 30 45 8 . 90 110 70 70 33 Lost Part 260 | . . . . . . . . . . . . 110 80 20 . 50 Lost Ally 39 | . . . . . 39 . . . . . . . . . . . Purge Threat 5 | . 5 . . . . . . . . . . . . . . . Squads Dispatched 5 | . . . . . 1 2 . . . . . . 2 . . . Investigation . | . . . . . . . . . . . . . . . . . Extermination 1 | . . . . . . . . . . . . . 1 . . . Reinforcement 2 | . . . . . 1 . . . . . . . 1 . . . Assault 2 | . . . . . . 2 . . . . . . . . . . Garrison . | . . . . . . . . . . . . . . . . . Intercept . | . . . . . . . . . . . . . . . . . Searches Triggered . | . . . . . . . . . . . . . . . . . Construction Impeded . | . . . . . . . . . . . . . . . . . Haulers Reinforced . | . . . . . . . . . . . . . . . . . Active Scanning Responses . | . . . . . . . . . . . . . . . . . Cargo Convoy Interrupts . | . . . . . . . . . . . . . . . . . Stealth | -11 -10 -10 -10 -9 -8 -8 -8 -6 -6 -6 -6 -5 -5 -5 -5 -5 --------- Run | Yrd Mat Min Exi Min Mat Sto Rec Fac Low Low Dat Pro Fac Upp Upp War Distress Signals 2 | . 1 . . . . 1 . . . . . . . . . . Communications Jammed . | . . . . . . . . . . . . . . . . . Distress Signals . | . . . . . . . . . . . . . . . . . Times Spotted 146 | . 5 2 . 21 4 15 1 2 1 2 . 19 30 11 . 33 Peak Tracking Total 21 | . 3 2 . 19 2 5 1 2 1 2 . 7 9 11 . 21 Tactical Retreats 15 | . . . . . . . . . . . . 2 6 4 . 3 Traps | -11 -10 -10 -10 -9 -8 -8 -8 -6 -6 -6 -6 -5 -5 -5 -5 -5 ------- Run | Yrd Mat Min Exi Min Mat Sto Rec Fac Low Low Dat Pro Fac Upp Upp War Traps Triggered 1 | . . . . . . . . . . . . . 1 . . . Indirectly . | . . . . . . . . . . . . . . . . . Trap Hack Attempts . | . . . . . . . . . . . . . . . . . Triggered . | . . . . . . . . . . . . . . . . . Disarmed . | . . . . . . . . . . . . . . . . . Reprogrammed . | . . . . . . . . . . . . . . . . . Reused . | . . . . . . . . . . . . . . . . . Traps Extracted . | . . . . . . . . . . . . . . . . . Installed . | . . . . . . . . . . . . . . . . . Triggered . | . . . . . . . . . . . . . . . . . Machines | -11 -10 -10 -10 -9 -8 -8 -8 -6 -6 -6 -6 -5 -5 -5 -5 -5 ---------- Run | Yrd Mat Min Exi Min Mat Sto Rec Fac Low Low Dat Pro Fac Upp Upp War Machines Disabled 4 | . . . . . 1 2 . . 1 . . . . . . . Max in Single Turn 1 | . . . . . . 1 . . 1 . . . . . . . Machines Repaired . | . . . . . . . . . . . . . . . . . Machines Dismantled . | . . . . . . . . . . . . . . . . . Machines Sabotaged . | . . . . . . . . . . . . . . . . . Overloaded Fab Kills . | . . . . . . . . . . . . . . . . . Hacking | -11 -10 -10 -10 -9 -8 -8 -8 -6 -6 -6 -6 -5 -5 -5 -5 -5 --------- Run | Yrd Mat Min Exi Min Mat Sto Rec Fac Low Low Dat Pro Fac Upp Upp War Machines Accessed 16 | . 2 . 3 1 . 3 1 . . . 3 . . . . 3 Terminals 7 | . 2 . . 1 . 3 1 . . . . . . . . . Fabricators . | . . . . . . . . . . . . . . . . . Repair Stations . | . . . . . . . . . . . . . . . . . Recycling Units . | . . . . . . . . . . . . . . . . . Scanalyzers . | . . . . . . . . . . . . . . . . . Garrison Access . | . . . . . . . . . . . . . . . . . Total Hacks 60 | . 8 . 17 2 . 4 2 . . . 23 . . . . 4 Successful 51 | . 4 . 17 . . 3 . . . . 23 . . . . 4 Failed 9 | . 4 . . 2 . 1 2 . . . . . . . . . Catastrophic 1 | . . . . 1 . . . . . . . . . . . . Database Lockouts . | . . . . . . . . . . . . . . . . . Manual 16 | . 2 . . 2 . 9 2 . 1 . . . . . . . Terminals 16 | . 8 . . 2 . 4 2 . . . . . . . . . Fabricators . | . . . . . . . . . . . . . . . . . Repair Stations . | . . . . . . . . . . . . . . . . . Recycling Units . | . . . . . . . . . . . . . . . . . Scanalyzers . | . . . . . . . . . . . . . . . . . Garrison Access . | . . . . . . . . . . . . . . . . . Terminal Hacks 50 | . 3 . 17 . . 3 . . . . 23 . . . . 4 Record 24 | . . . 17 . . . . . . . 5 . . . . 2 Part Schematic 10 | . . . . . . . . . . . 10 . . . . . Robot Schematic 5 | . . . . . . . . . . . 5 . . . . . Prototype ID Bank 4 | . 1 . . . . . . . . . 3 . . . . . Open Door 4 | . . . . . . 2 . . . . . . . . . 2 Unreport Threat 1 | . 1 . . . . . . . . . . . . . . . Locate Traps 2 | . 1 . . . . 1 . . . . . . . . . . Fabricator Hacks . | . . . . . . . . . . . . . . . . . Repair Station Hacks . | . . . . . . . . . . . . . . . . . Recycling Unit Hacks . | . . . . . . . . . . . . . . . . . Scanalyzer . | . . . . . . . . . . . . . . . . . Garrison Access Hacks . | . . . . . . . . . . . . . . . . . Unauthorized Hacks 1 | . 1 . . . . . . . . . . . . . . . Terminals 1 | . 1 . . . . . . . . . . . . . . . Botnet 1 | . 1 . . . . . . . . . . . . . . . Fabricators . | . . . . . . . . . . . . . . . . . Repair Stations . | . . . . . . . . . . . . . . . . . Recycling Units . | . . . . . . . . . . . . . . . . . Scanalyzers . | . . . . . . . . . . . . . . . . . Garrison Access . | . . . . . . . . . . . . . . . . . Data Cores Recovered 2 | . . . . . 1 1 . . . . . . . . . . Used 1 | . . . . . . 1 . . . . . . . . . . Hacking Detections 5 | . 2 . . 1 . 1 1 . . . . . . . . . Full Trace Events 1 | . . . . . . . 1 . . . . . . . . . Feedback Events . | . . . . . . . . . . . . . . . . . Feedback Blocked . | . . . . . . . . . . . . . . . . . Robot Schematics Acquired 5 | . . . . . . . . . . . 5 . . . . . Robots Built . | . . . . . . . . . . . . . . . . . Authchips . | . . . . . . . . . . . . . . . . . Time . | . . . . . . . . . . . . . . . . . Total Robot Build Rating . | . . . . . . . . . . . . . . . . . Part Schematics Acquired 10 | . . . . . . . . . . . 10 . . . . . Parts Built . | . . . . . . . . . . . . . . . . . Authchips . | . . . . . . . . . . . . . . . . . Time . | . . . . . . . . . . . . . . . . . Total Part Build Rating . | . . . . . . . . . . . . . . . . . Part Studies Acquired . | . . . . . . . . . . . . . . . . . Parts Repaired . | . . . . . . . . . . . . . . . . . Time . | . . . . . . . . . . . . . . . . . Parts Recycled . | . . . . . . . . . . . . . . . . . Recycled Matter . | . . . . . . . . . . . . . . . . . Retrieved Matter . | . . . . . . . . . . . . . . . . . Retrieved Components . | . . . . . . . . . . . . . . . . . Parts Scanalyzed . | . . . . . . . . . . . . . . . . . Part Schematics Acquired . | . . . . . . . . . . . . . . . . . Parts Damaged . | . . . . . . . . . . . . . . . . . Bothacking | -11 -10 -10 -10 -9 -8 -8 -8 -6 -6 -6 -6 -5 -5 -5 -5 -5 ------------ Run | Yrd Mat Min Exi Min Mat Sto Rec Fac Low Low Dat Pro Fac Upp Upp War Used RIF Installer . | . . . . . . . . . . . . . . . . . Robots Hacked . | . . . . . . . . . . . . . . . . . Non-combat . | . . . . . . . . . . . . . . . . . Combat . | . . . . . . . . . . . . . . . . . Robot Hacks Applied . | . . . . . . . . . . . . . . . . . Relay Couplers Released . | . . . . . . . . . . . . . . . . . Fabnet Peak Effective % . | . . . . . . . . . . . . . . . . . Robots Rewired . | . . . . . . . . . . . . . . . . . Allies Hacked . | . . . . . . . . . . . . . . . . . Hacks Repelled . | . . . . . . . . . . . . . . . . . Allies | -11 -10 -10 -10 -9 -8 -8 -8 -6 -6 -6 -6 -5 -5 -5 -5 -5 -------- Run | Yrd Mat Min Exi Min Mat Sto Rec Fac Low Low Dat Pro Fac Upp Upp War Total Allies 8 | . . 3 . 2 . 2 . . . . . 1 . . . . Largest Group 3 | . . 3 3 3 2 2 2 2 . . . 1 . . . . Highest-Rated Group 96 | . . 40 40 50 50 62 62 62 . . . 96 . . . . Highest-Rated Ally 96 | . . 16 16 31 31 31 31 31 . . . 96 . . . . Total Orders . | . . . . . . . . . . . . . . . . . Ally Attacks 27 | . . . . 2 8 . 7 . . . . 10 . . . . Total Damage 540 | . . . . 32 126 . 146 . . . . 236 . . . . Kills 5 | . . . . . 2 . 2 . . . . 1 . . . . Allies Corrupted . | . . . . . . . . . . . . . . . . . Allies Melted . | . . . . . . . . . . . . . . . . . Intel | -11 -10 -10 -10 -9 -8 -8 -8 -6 -6 -6 -6 -5 -5 -5 -5 -5 ------- Run | Yrd Mat Min Exi Min Mat Sto Rec Fac Low Low Dat Pro Fac Upp Upp War Active Infowar (turns) 3286 | . . . . . 594 889 267 61 147 74 21 295 230 153 144 411 Optics 3286 | . . . . . 594 889 267 61 147 74 21 295 230 153 144 411 Sensors 136 | . . . . . . . . 36 100 . . . . . . . Traps 664 | . . . . . . . . . . . . 153 . . 113 398 Decoding 1280 | . . . . . . . . . . 37 21 295 230 153 144 400 Jamming 38 | . . . . . . . . . . 38 . . . . . . Robot Analysis Total . | . . . . . . . . . . . . . . . . . Derelict Logs Recovered 9 | . . 3 . 2 . . . . 1 1 . 1 . . 1 . Drone Launches . | . . . . . . . . . . . . . . . . . Drone Recoveries . | . . . . . . . . . . . . . . . . . Decoded 0b10 Intel 4 | . . . . . . . . . . . . . 4 . . . Traps 1 | . . . . . . . . . . . . . 1 . . . Emergency Access 1 | . . . . . . . . . . . . . 1 . . . Exits 2 | . . . . . . . . . . . . . 2 . . . Exploration | -11 -10 -10 -10 -9 -8 -8 -8 -6 -6 -6 -6 -5 -5 -5 -5 -5 ------------- Run | Yrd Mat Min Exi Min Mat Sto Rec Fac Low Low Dat Pro Fac Upp Upp War Turns Passed 5260 | 82 259 680 724 194 629 889 267 61 147 74 21 295 230 153 144 411 Spaces Moved 4879 | 48 141 409 409 72 222 303 107 55 472 183 86 493 323 357 323 876 Core 231 | 7 . . . . . . . . . . . 224 . . . . Treads 1625 | 41 141 409 409 49 159 303 107 7 . . . . . . . . Legs 86 | . . . . 23 63 . . . . . . . . . . . Wheels . | . . . . . . . . . . . . . . . . . Hover . | . . . . . . . . . . . . . . . . . Flight 2937 | . . . . . . . . 48 472 183 86 269 323 357 323 876 Fastest Speed 20 | 50 160 160 160 240 240 240 240 20 23 23 23 23 23 30 40 34 Average Speed 91 | 149 160 160 169 250 247 240 240 49 23 23 23 39 28 39 40 40 Slowest Speed 330 | 160 160 160 240 320 330 240 240 240 23 23 23 195 35 40 44 114 Overloaded Moves . | . . . . . . . . . . . . . . . . . Propulsion Burnouts . | . . . . . . . . . . . . . . . . . Robots Hopped 12 | . . . . . . . . . . . . 2 8 1 . 1 Potential Cave-ins . | . . . . . . . . . . . . . . . . . Cave-ins Triggered . | . . . . . . . . . . . . . . . . . Exploration Rate (%) 48 | 4 30 98 87 38 18 41 40 3 66 40 74 65 14 68 53 92 Regions Visited 16 Branch Regions 12 Pre-discovered Areas 4 | . . . 1 1 . . . . 1 . . 1 . . . . Known Exits Taken 9 | . . . . . 1 . . 1 1 1 1 1 1 1 1 . Unknown Exits Taken 7 | 1 1 1 1 1 . 1 1 . . . . . . . . . Scrap Searched 14 | . . 1 . 1 . . . . 1 3 . 1 . 3 4 . Spaces Dug 1 | . . . . . . . . . 1 . . . . . . . Terrain Destroyed 1 | . . . . . . . . . 1 . . . . . . . Melee 1 | . . . . . . . . . 1 . . . . . . . Projectile . | . . . . . . . . . . . . . . . . . AOE . | . . . . . . . . . . . . . . . . . Terrain Rammed . | . . . . . . . . . . . . . . . . . Walls Destroyed . | . . . . . . . . . . . . . . . . . Machines Disabled . | . . . . . . . . . . . . . . . . . Actions | -11 -10 -10 -10 -9 -8 -8 -8 -6 -6 -6 -6 -5 -5 -5 -5 -5 --------- Run | Yrd Mat Min Exi Min Mat Sto Rec Fac Low Low Dat Pro Fac Upp Upp War Total 5419 | 55 156 423 438 85 280 395 112 96 500 213 86 565 391 365 333 926 Wait 263 | . 4 5 25 2 16 22 3 14 16 26 . 57 25 7 . 41 Move 4840 | 47 140 408 408 71 221 302 106 54 471 182 85 489 306 354 322 874 Hop 11 | . . . . . . . . . . . . 1 8 1 . 1 Pick Up 42 | 1 1 2 4 4 13 9 . . 2 1 . . . . 5 . Fast Attach 33 | 6 1 . . . 3 . . . . 3 . 3 7 2 5 3 Attach 22 | . . . . 5 1 . . 10 . . 1 . 4 . . 1 Detach 9 | . . . . 1 . . . 5 . . . 1 . . . 2 Swap 19 | 1 . 2 1 1 5 6 . . 1 . . . . . 1 1 Drop 37 | . . . . . 6 13 . 13 3 1 . . . . . 1 Fire 76 | . 10 6 . 1 15 41 3 . . . . . . . . . Melee 67 | . . . . . . 2 . . 7 . . 14 41 1 . 2 Ram . | . . . . . . . . . . . . . . . . . Kick . | . . . . . . . . . . . . . . . . . Crush . | . . . . . . . . . . . . . . . . . Escape Stasis . | . . . . . . . . . . . . . . . . . Rewire . | . . . . . . . . . . . . . . . . . Trap . | . . . . . . . . . . . . . . . . . Miscellaneous . | . . . . . . . . . . . . . . . . . Route ------- -11/Scrapyard -10/Materials -10/Mines (discovered 3 exits: [*Mat x2] / *Exi) -10/Exiles -9/Mines -8/Materials -8/Storage -8/Recycling -6/Factory -6/Lower Caves -6/Lower Caves -6/Data Miner -5/Proximity Caves -5/Factory (discovered 2 exits: *Upp / Ext) -5/Upper Caves -5/Upper Caves (discovered 2 exits: *Fac / *War) -5/Warlord (discovered 1 exit: *Pro) History --------- Turn | Location | Event 12 | -11/Scrapyard | Discovered new exit (range 16) 83 | -11/Scrapyard | Entered Materials 273 | -10/Materials | Discovered new exit (range 16) 316 | -10/Materials | Build established: Mutant 342 | -10/Materials | Entered Mines 410 | -10/Mines | Learned Materials garrison access intel 459 | -10/Mines | Assisted by bots powering up and referring to "LRC-V3" 502 | -10/Mines | Learned 4 Materials zone layouts 669 | -10/Mines | Discovered new exit (range 7) 861 | -10/Mines | Discovered new exit (range 8) 1009 | -10/Mines | Deemed a non-threat by the Exiles lab entrance 1011 | -10/Mines | Discovered new exit (range 5) 1022 | -10/Mines | Entered Exiles 1022 | -10/Exiles | Accompanied by 3 allies 1061 | -10/Exiles | Met 8R-AWN 1088 | -10/Exiles | Met EX-HEX 1170 | -10/Exiles | Met EX-BIN 1305 | -10/Exiles | Met EX-DEC 1314 | -10/Exiles | Learned location of Zion (-7) 1391 | -10/Exiles | Visited The Gauntlet 1717 | -10/Exiles | Discovered new exit (range 10) 1746 | -10/Exiles | Entered Mines 1746 | -9/Mines | Accompanied by 3 allies 1778 | -9/Mines | Found DCF Scrap (16 items) 1785 | -9/Mines | Assembled infested the area 1824 | -9/Mines | Core integrity fell below 50% 1837 | -9/Mines | Core integrity fell below 20% 1840 | -9/Mines | Lost 3 allies 1843 | -9/Mines | Learned Materials security intel 1867 | -9/Mines | Lost 4 parts (1p1n2w) 1930 | -9/Mines | Discovered new exit (range 5) 1940 | -9/Mines | Entered Materials 1940 | -8/Materials | Accompanied by 2 allies 1940 | -8/Materials | Evolved 4 slots: Utility x4 1941 | -8/Materials | Identified exit to Storage 1944 | -8/Materials | Loaded intel: 1 garrison access location 1945 | -8/Materials | Led the pair of lost Derelicts to an unsafe place 2569 | -8/Materials | Entered Storage 3363 | -8/Storage | Discovered new exit (range 12) 3390 | -8/Storage | Met a pair of Derelict thieves 3458 | -8/Storage | Entered Recycling 3458 | -8/Recycling | Accompanied by 2 allies 3689 | -8/Recycling | Discovered new exit (range 9) 3725 | -8/Recycling | Entered Factory 3725 | -6/Factory | Accompanied by 2 allies 3725 | -6/Factory | Evolved 4 slots: Propulsion x4 3778 | -6/Factory | Discovered new exit (range 11) 3785 | -6/Factory | Identified exit to Lower Caves 3786 | -6/Factory | Entered Lower Caves 3787 | -6/Lower Caves | Encountered a Warlord checkpoint 3796 | -6/Lower Caves | Acquired the password to a Derelict Tinkerer's latest research 3834 | -6/Lower Caves | Found DCF Scrap (13 items) 3919 | -6/Lower Caves | Learned location of Extension (-5) 3925 | -6/Lower Caves | Discovered new exit (range 17) 3928 | -6/Lower Caves | Identified exit to Lower Caves 3933 | -6/Lower Caves | Entered another Lower Caves area 3960 | -6/Lower Caves | Learned Factory terminal intel 3977 | -6/Lower Caves | Discovered new exit (range 18) 3988 | -6/Lower Caves | Encountered a Warlord checkpoint 3989 | -6/Lower Caves | Identified exit to Data Miner 4007 | -6/Lower Caves | Entered Data Miner 4008 | -6/Data Miner | Discovered new exit (range 6) 4012 | -6/Data Miner | Met Data Miner 4022 | -6/Data Miner | Received God Mode back door access code from Data Miner 4028 | -6/Data Miner | Identified exit to Proximity Caves 4028 | -6/Data Miner | Entered Proximity Caves 4037 | -5/Proximity Caves | Spotted B-75 Beast 4214 | -5/Proximity Caves | Lost 11 parts (1p7n2u1w) 4216 | -5/Proximity Caves | Core integrity fell below 50% 4316 | -5/Proximity Caves | Discovered new exit (range 13) 4318 | -5/Proximity Caves | Core integrity fell below 20% 4322 | -5/Proximity Caves | Identified exit to Factory 4323 | -5/Proximity Caves | Entered Factory 4323 | -5/Factory | Evolved 2 slots: Power x1, Propulsion x1 4324 | -5/Factory | Loaded intel: 28 terminal locations 4374 | -5/Factory | Identified exit to Extension 4445 | -5/Factory | Core integrity fell below 50% 4550 | -5/Factory | Identified exit to Upper Caves 4553 | -5/Factory | Entered Upper Caves 4574 | -5/Upper Caves | Attracted the attention of an 0b10 outpost 4606 | -5/Upper Caves | Lost 7 parts (1p5n1w) 4702 | -5/Upper Caves | Discovered new exit (range 7) 4705 | -5/Upper Caves | Identified exit to Upper Caves 4706 | -5/Upper Caves | Entered another Upper Caves area 4715 | -5/Upper Caves | Discovered new exit (range 11) 4719 | -5/Upper Caves | Identified exit to Factory 4755 | -5/Upper Caves | Learned Factory emergency access door positions 4788 | -5/Upper Caves | Spotted B-75 Beast 4807 | -5/Upper Caves | Found DCF Scrap (13 items) 4844 | -5/Upper Caves | Discovered new exit (range 13) 4849 | -5/Upper Caves | Identified exit to Warlord 4850 | -5/Upper Caves | Entered Warlord 4867 | -5/Warlord | Discovered new exit (range 12) 4871 | -5/Warlord | Build established: Derelict-Mutant 4871 | -5/Warlord | Identified exit to Proximity Caves 4966 | -5/Warlord | Found Prototype Device 4966 | -5/Warlord | Identified Minesniffer Drone Bay 5007 | -5/Warlord | Met Warlord 5013 | -5/Warlord | Warlord's base attacked by MAIN.C 5159 | -5/Warlord | Opened side exit 5218 | -5/Warlord | Core integrity fell below 20% 5261 | -5/Warlord | Destroyed by G-50 Soldier with Heavy Laser Last Messages --------------- 05225_ E-15 Imp triggered Dirty Bomb Trap. 05225_ An explosion rips through the floor. 05225_ E-15 Imp destroyed. 05226_ Acquired Cesium-ion Thruster. 05228_ Dropped Minesniffer Drone Bay. 05228_ S-43 Plague triggered Dirty Bomb Trap. 05228_ An explosion rips through the floor. 05228_ S-43 Plague destroyed. 05228_ S-27 Virus destroyed. 05242_ Mak. Power Source destroyed. 05243_ Acquired 23 matter. 05244_ Acquired Lgt. Nuclear Core. 05245_ Field Propulsion Drive blown off. 05245_ Acquired 18 matter. 05246_ Lgt. Nuclear Core destroyed. 05247_ Acquired Field Propulsion Drive. 05248_ Nuclear Pulse Array destroyed. 05250_ 0b10 Decoder Chip [Scout] destroyed. 05259_ E-15 Imp destroyed. 05260_ Fusion Compressor destroyed. Map ----- +----------------------------------------------------+ | ?????????????????????????????? | | ?????????????????????????????? | | ?????????????????????????????? | | ?????????????????????????????? | | ????????????????????#####????? | | ???????????????????## ###??? | | ??????????????????## ##?? | | ?????????????????## > #?? | | ?????? ??????????# #?? | | ??????? ?????????# #??? | | ???????? ????????# ##??? | | ????????? ???????## #???? | | ?????????? ???????## ^##???? | | ??????????# ?????### ##????? | | ??????????# ##### ###???? | | ??????????# ###?? | | ??????????## ### ### #?? | | ????????????# ##?# #? | | ????????????### ##?# #? | | ??????????????# #?# ### | | ??????????????## ##? % ; # | | ???????????????## ##; ;; | | #???????????????## ;"#; ;# | | ############?????## ;# ;;# | | """""""""""#?????##; ; ;; # | | """""""""""#?#####d;[d[[ @ < | | ### ### g%*= < | | [ + %[ ;;% ###? | | ^+ =%g;### #??? | | #### g##??# #??? | | """""""""""#??## g #???# ##?? | | """""""""""#???# #?### #?? | | ############???# #### # #?? | | #?????????????## ### #?? | | ?????????????## # ##? | | ?????????????# ## #? | | ???????????### #### % ##? | | ??????????##" #?# = #? | | ??????????# "==%#?# #? | | ??????????##"[ "#### #? | | ??????????# "* " ## ###? | | ??????????##" ="### #?? | | ??????????## ######s #?? | | ??????????# ^ "# # ##?? | | ??????##?## ## / ""# #??? | | ?????## # ### ! "# #??? | | ?????# ###" "" #??? | | ?????# ###" "# ##??? | | ?????# ## ##"" #???? | | ?????###### ## """ ##???? | +----------------------------------------------------+ Best States ------------- Heat Dissipation 40 Energy Generation 18 Energy Capacity 300 Matter Stores 300 Matter Capacity 300 Sight Range 20 Robot Scan Range 15 Terrain Scan Density 410 Jamming Range 12 Armor Coverage 675 Evasion (%) 65 Targeting Accuracy 5 Recoil Reduction 2 Item Schematics ----------------- Combat Drone Bay | -6/Data Miner | Free Lgt. Regenerative Plating | -6/Data Miner | Free Enh. Armored Leg | -6/Data Miner | Free Imp. Energy Well | -6/Data Miner | Free Hvy. Proton Cannon | -6/Data Miner | Free Shield Leg | -6/Data Miner | Free Lrn. Sensor Array | -6/Data Miner | Free Hvy. Gauss Cannon | -6/Data Miner | Free Imp. Weapon Cycler | -6/Data Miner | Free Adv. Force Field | -6/Data Miner | Free Robot Schematics ------------------ H-66 Slayer | -6/Data Miner | Free P-60 Hacker | -6/Data Miner | Free L-41 Fighter | -6/Data Miner | Free R-10 Processor | -6/Data Miner | Free L-61 Swordsman | -6/Data Miner | Free Fabricated ------------ Nothing Repaired ---------- Nothing Studied --------- None Alien Tech Used ----------------- None Achievements -------------- None Challenges ------------ None Game ------ Seed ShieldHardenedSuit Manual? 0 Play Time 00:40:41 Cumulative 263.7 hours Start 2026.08.20 @ 19:07:15 End 2026.08.20 @ 19:50:34 Sessions 1 Manual Loads 0 Difficulty Rogue Special Mode None Game No. 457 Rogue 294 Adventurer 15 Explorer 148 Win Type - Total 30 Types 29/0/0/1/0/0/0/0/0/0 Lore% 65 Gallery% 65 Achievement% 58 Wizard Run 0 Options --------- Layout 0 ASCII 0 Keyboard 1 Movement Numpad Keybinds 0 Fullscreen 2 Font 18/SmallcapsGlow Map View 76x50 Zoom Use 0% Tactical HUD 1 Map Filters NONE Filters NONE Steam 1 RUN: c652314e-efcd-43d1-8bb9-e374dad2327f